fUSD/lending_fUSD_20240115
["ID","MTS","AMOUNT","RATE_DAILY","PERIOD"]
[311699539,1705338643117,-152.50773218,0.00023712,2]
[311699541,1705338643126,-159.51,0.00023712,2]
[311699543,1705338643135,-420.1,0.0002381,2]
[311699545,1705338643144,-159.51,0.00023882,2]
[311699547,1705338643154,-155.24,0.00023908,2]
[311699549,1705338643163,-152.50773218,0.00023982,2]
[311699551,1705338643172,-1400.0,0.00024,3]
[311699553,1705338643181,-377.59,0.00024001,2]
[311699555,1705338643190,-159.51,0.00024051,2]
[311699557,1705338643200,-150.0,0.00024106,2]
[311699559,1705338643209,-664.06,0.00024192,2]
[311699561,1705338643218,-159.51,0.0002422,2]
[311699563,1705338643228,-152.50773218,0.00024253,2]
[311699565,1705338643238,-614.71,0.0002433,2]
[311699567,1705338643248,-351.57,0.00024351,2]
[311699569,1705338643258,-1152.74678695,0.00024451,2]
[311699571,1705338643267,-152.50773218,0.00024524,2]
[311699573,1705338643277,-162.35,0.00024598,2]
[311699575,1705338643286,-250.0,0.00024658,2]
[311699607,1705338643576,-3885.93,0.00024658,4]
[311699609,1705338643586,-1152.74678695,0.00024745,2]
[311699611,1705338643596,-152.50773218,0.00024795,2]
[311699613,1705338643605,-162.0255,0.000249,2]
[311699615,1705338643615,-421.22112227,0.00024997,2]
[311699617,1705338643625,-196.73173448,0.00024997,2]
[311699619,1705338643634,-2609.97162441,0.00024997,2]
[311699621,1705338643644,-415.44143322,0.00024998,2]
[311699623,1705338643653,-182.00994283,0.00025,2]
[311699625,1705338643663,-507.79545917,0.00025,2]
[311699627,1705338643672,-505444.87458687,0.00025,2]
[311699629,1705338643681,-152.50773218,0.00025066,2]
[311699631,1705338643690,-1000.0,0.00025181,2]
[311699633,1705338643700,-1000.0,0.00025181,2]
[311699635,1705338643709,-157.13,0.0002524,2]
[311699637,1705338643718,-614.71,0.00025308,2]
[311699639,1705338643727,-157.04,0.0002533,2]
[311699641,1705338643736,-152.50773218,0.00025337,2]
[311699643,1705338643746,-161.45,0.0002538,2]
[311699644,1705338643755,-1152.74678695,0.00025419,2]
[311699646,1705338643764,-152.50773218,0.00025608,2]
[311699648,1705338643773,-152.50773218,0.00025878,2]
[311699650,1705338643783,-162.35,0.00025969,2]
[311699652,1705338643791,-5000.0,0.00026,2]
[311699654,1705338643801,-2000.0,0.00026,2]
[311699656,1705338643810,-1450.0,0.00026,3]
[311699658,1705338643819,-150.0,0.00026079,2]
[311699659,1705338643828,-152.50773218,0.00026149,2]
[311699660,1705338643837,-1229.0,0.00026157,2]
[311699661,1705338643847,-377.59,0.00026265,2]
[311699662,1705338643856,-614.71,0.00026287,2]
[311699663,1705338643865,-152.50773218,0.0002642,2]
[311699664,1705338643875,-200.0,0.00026506,2]
[311699665,1705338643884,-200.0,0.00026506,2]
[311699666,1705338643893,-605.40969963,0.00026506,2]
[311699667,1705338643903,-4264.51,0.00026575,2]
[311699668,1705338643915,-152.50773218,0.00026691,2]
[311699669,1705338643924,-184.04784876,0.00026793,3]
[311699670,1705338643934,-204.49760974,0.00026793,3]
[311699671,1705338643943,-167.00103247,0.00026793,3]
[311699672,1705338643952,-207.50250826,0.00026793,3]
[311699674,1705338643963,-225.89779505,0.00026793,3]
[311699676,1705338643972,-246.88130096,0.00026793,3]
[311699678,1705338643981,-664.06,0.0002688,2]
[311699680,1705338643990,-152.50773218,0.00026962,2]
[311699682,1705338643999,-415.86531502,0.00027,2]
[311699684,1705338644009,-3312.0,0.00027,2]
[311699686,1705338644018,-351.57,0.00027056,2]
[311699688,1705338644028,-30179.0,0.000272,2]
[311699690,1705338644037,-152.50773218,0.00027233,2]
[311699692,1705338644046,-614.71,0.00027265,2]
[311699694,1705338644056,-250.0,0.00027397,2]
[311699696,1705338644066,-392.05,0.00027397,4]
[311699698,1705338644075,-250.0,0.000274,2]
[311699700,1705338644085,-4000.0,0.000274,2]
[311699702,1705338644094,-152.50773218,0.00027504,2]
[311699704,1705338644103,-157.13,0.00027614,2]
[311699706,1705338644113,-152.50773218,0.00027774,2]
[311699708,1705338644122,-157.04,0.00027863,2]
[311699710,1705338644131,-204.0,0.00027957,2]
[311699712,1705338644140,-1500.0,0.00028,3]
[311699714,1705338644149,-152.50773218,0.00028045,2]
[311699716,1705338644158,-1355.0,0.00028224,2]
[311699718,1705338644167,-387.411,0.00028224,2]
[311699720,1705338644176,-250.961,0.00028224,2]
[311699722,1705338644185,-835.0,0.00028224,2]
[311699724,1705338644194,-947.18,0.00028224,2]
[311699726,1705338644204,-1859.411,0.00028224,2]
[311699728,1705338644213,-294.119,0.00028224,2]
[311699730,1705338644222,-1252.0,0.00028224,2]
[311699732,1705338644231,-269.815,0.00028224,2]
[311699734,1705338644240,-1234.0,0.00028224,2]
[311699736,1705338644251,-214.0,0.00028224,2]
[311699738,1705338644261,-1931.0,0.00028224,2]
[311699740,1705338644270,-425.0,0.00028224,2]
[311699742,1705338644279,-741.751,0.00028224,2]
[311699744,1705338644288,-995.0,0.00028224,2]
[311699746,1705338644297,-868.0,0.00028224,2]
[311699748,1705338644306,-324.552,0.00028224,2]
[311699750,1705338644315,-507.0,0.00028224,2]
[311699752,1705338644324,-238.493,0.00028224,2]
[311699754,1705338644333,-614.71,0.00028243,2]
[311699756,1705338644342,-2989.409,0.00028272,2]
[311699758,1705338644351,-8103.309,0.00028272,2]
[311699760,1705338644360,-5696.692,0.00028272,2]
[311699762,1705338644369,-7347.0,0.00028272,2]
[311699763,1705338644378,-19683.0,0.00028272,2]
[311699764,1705338644388,-770.716,0.00028272,2]
[311699765,1705338644397,-42193.0,0.00028272,2]
[311699766,1705338644406,-2271.0,0.00028272,2]
[311699767,1705338644414,-1046.575,0.00028272,2]
[311699768,1705338644424,-213.722,0.00028272,2]
[311699769,1705338644433,-152.50773218,0.00028316,2]
[311699771,1705338644442,-150.90066328,0.00028318,2]
[311699773,1705338644452,-157.46077969,0.00028319,2]
[311699775,1705338644461,-200.0,0.00028347,3]
[311699777,1705338644471,-153.12319756,0.00028354,2]
[311699779,1705338644480,-150.0,0.00028362,2]
[311699781,1705338644489,-150.0,0.00028362,2]
[311699783,1705338644500,-439.911,0.00028362,2]
[311699785,1705338644509,-157.41746229,0.00028374,2]
[311699787,1705338644518,-163.3311713,0.00028386,2]
[311699789,1705338644527,-150.90066328,0.00028394,2]
[311699791,1705338644536,-160.01800297,0.00028403,2]
[311699793,1705338644546,-150.90066328,0.00028446,2]
[311699795,1705338644555,-377.59,0.00028529,2]
[311699797,1705338644564,-152.50773218,0.00028587,2]
[311699799,1705338644573,-166.6144594,0.00028614,2]
[311699801,1705338644582,-153.12319756,0.0002866,2]
[311699803,1705338644591,-156.85742576,0.00028694,2]
[311699805,1705338644600,-153.12319756,0.00028732,2]
[311699807,1705338644609,-156.85742576,0.00028739,2]
[311699809,1705338644619,-150.90066328,0.00028844,2]
[311699811,1705338644628,-152.50773218,0.00028858,2]
[311699813,1705338644636,-158.48101388,0.00028948,2]
[311699815,1705338644645,-156.85742576,0.00028974,2]
[311699817,1705338644654,-153.12319756,0.00028983,2]
[311699819,1705338644664,-153.12319756,0.00029087,2]
[311699821,1705338644673,-153.12319756,0.00029096,2]
[311699823,1705338644682,-152.50773218,0.00029129,2]
[311699825,1705338644690,-204.0,0.00029144,4]
[311699827,1705338644700,-614.71,0.00029222,2]
[311699829,1705338644709,-191.10385801,0.00029317,2]
[311699831,1705338644718,-150.90066328,0.00029374,2]
[311699833,1705338644727,-152.50773218,0.000294,2]
[311699835,1705338644735,-156.85742576,0.00029424,2]
[311699837,1705338644745,-153.12319756,0.00029464,2]
[311699839,1705338644756,-153.12319756,0.00029496,2]
[311699841,1705338644765,-157.46077969,0.00029536,2]
[311699843,1705338644775,-664.06,0.00029568,2]
[311699845,1705338644785,-152.50773218,0.0002967,2]
[311699847,1705338644795,-7999.99,0.00029762,6]
[311699849,1705338644805,-351.57,0.00029762,2]
[311699851,1705338644815,-175.36700291,0.000298,2]
[311699853,1705338644826,-13163.45697408,0.000298,2]
[311699855,1705338644837,-156.85742576,0.00029849,2]
[311699857,1705338644848,-5000.0,0.00029866,2]
[311699859,1705338644858,-163.2462232,0.00029875,2]
[311699861,1705338644869,-4904.26526178,0.00029885,2]
[311699863,1705338644881,-150.90066328,0.00029908,2]
[311699865,1705338644893,-152.50773218,0.00029941,2]
[311699867,1705338644905,-163.2462232,0.00029959,2]
[311699869,1705338644917,-157.13,0.00029988,2]
[311699871,1705338644933,-100000.0,0.0003,2]
[311699873,1705338644944,-461.78440486,0.0003,2]
[311699875,1705338644955,-722.21551038,0.0003,4]
[311699877,1705338644967,-78678.21154973,0.0003,4]
[311699879,1705338644978,-152.31,0.0003,2]
[311699881,1705338644989,-152.31,0.0003,2]
[311699883,1705338645004,-152.31,0.0003,2]
[311699886,1705338645016,-152.31,0.0003,2]
[311699888,1705338645026,-152.31,0.0003,2]
[311699889,1705338645036,-152.31,0.0003,2]
[311699892,1705338645046,-152.31,0.0003,2]
[311699894,1705338645057,-1550.0,0.0003,3]
[311699896,1705338645067,-157.65,0.0003,2]
[311699898,1705338645077,-157.65,0.0003,2]
[311699899,1705338645089,-3000.0,0.0003,2]
[311699902,1705338645100,-3000.0,0.0003,2]
[311699903,1705338645110,-3000.0,0.0003,2]
[311699906,1705338645122,-3000.0,0.0003,2]
[311699908,1705338645132,-3000.0,0.0003,2]
[311699910,1705338645142,-3000.0,0.0003,2]
[311699912,1705338645159,-1000.0,0.0003,2]
[311699913,1705338645170,-150.85,0.00030009,7]
[311699915,1705338645180,-150.90066328,0.00030016,7]
[311699917,1705338645190,-450.0,0.0003002,3]
[311699919,1705338645200,-450.0,0.0003002,3]
[311699922,1705338645210,-251.67232882,0.000301,4]
[311699924,1705338645219,-157.41746229,0.00030115,7]
[311699926,1705338645229,-153.84,0.00030137,2]
[311699928,1705338645238,-4003.0,0.00030137,3]
[311699929,1705338645247,-156.85742576,0.00030148,7]
[311699931,1705338645261,-151.0,0.00030165,120]
[311699933,1705338645270,-477.25,0.00030183,2]
[311699935,1705338645280,-153.12319756,0.00030193,7]
[311699938,1705338645289,-614.71,0.000302,2]
[311699939,1705338645298,-152.50773218,0.00030212,2]
[311699940,1705338645308,-204.0,0.00030331,6]
[311699941,1705338645318,-150.65058153,0.00030439,9]
[311699942,1705338645328,-150.65058153,0.00030439,11]
[311699943,1705338645337,-150.65058153,0.00030439,11]
[311699944,1705338645347,-150.65058153,0.00030439,8]
[311699945,1705338645356,-150.65058153,0.00030439,10]
[311699946,1705338645366,-150.65058153,0.00030439,8]
[311699947,1705338645375,-150.65058153,0.00030439,9]
[311699948,1705338645385,-150.65058153,0.00030439,11]
[311699949,1705338645394,-150.65058153,0.00030439,11]
[311699950,1705338645403,-150.65058153,0.00030439,10]
[311699951,1705338645412,-150.65058153,0.00030439,10]
[311699952,1705338645422,-150.65058153,0.00030439,8]
[311699953,1705338645431,-150.65058153,0.00030439,10]
[311699954,1705338645440,-150.65058153,0.00030439,11]
[311699955,1705338645449,-150.65058153,0.00030439,9]
[311699956,1705338645462,-150.65058153,0.00030439,8]
[311699957,1705338645471,-150.65058153,0.00030439,12]
[311699958,1705338645480,-150.65058153,0.00030439,12]
[311699959,1705338645489,-150.65058153,0.00030439,11]
[311699960,1705338645502,-150.65058153,0.00030439,12]
[311699961,1705338645511,-150.65058153,0.00030439,8]
[311699962,1705338645520,-150.65058153,0.00030439,11]
[311699963,1705338645529,-150.65058153,0.00030439,11]
[311699964,1705338645537,-150.65058153,0.00030439,12]
[311699965,1705338645547,-150.65058153,0.00030439,10]
[311699966,1705338645556,-16393.3899,0.00030457,2]
[311699967,1705338645565,-152.50773218,0.00030483,2]
[311699968,1705338645574,-163.2462232,0.00030489,7]
[311699969,1705338645584,-183.43059016,0.00030505,7]
[311699970,1705338645593,-150.90066328,0.00030568,7]
[311699971,1705338645602,-17414.0,0.000306,5]
[311699972,1705338645612,-162.54209167,0.00030612,7]
[311699973,1705338645622,-163.3311713,0.00030637,7]
[311699974,1705338645631,-157.4607797,0.00030644,7]
[311699975,1705338645641,-153.12319756,0.00030669,7]
[311699976,1705338645650,-167.69484041,0.00030716,7]
[311699977,1705338645659,-159.41214854,0.00030724,7]
[311699978,1705338645668,-150.90066328,0.00030729,7]
[311699979,1705338645677,-152.50773218,0.00030754,2]
[311699980,1705338645686,-151.0,0.00030781,30]
[311699981,1705338645696,-377.59,0.00030793,2]
[311699982,1705338645705,-191.10385801,0.00030873,7]
[311699983,1705338645714,-191.10385802,0.00030961,7]
[311699984,1705338645723,-150.90066328,0.00030969,7]
[311699985,1705338645732,-153.12319756,0.0003099,7]
[311699986,1705338645741,-100000.0,0.00031,2]
[311699987,1705338645751,-403279.61112911,0.00031,5]
[311699988,1705338645761,-152.50773218,0.00031025,2]
[311699989,1705338645770,-153.84,0.0003105,2]
[311699990,1705338645779,-163.3311713,0.00031073,7]
[311699991,1705338645788,-200.0,0.00031143,2]
[311699992,1705338645798,-614.71,0.00031179,2]
[311699993,1705338645807,-500.0,0.00031201,2]
[311699994,1705338645817,-5207.0,0.00031272,2]
[311699995,1705338645826,-42193.0,0.00031272,2]
[311699996,1705338645835,-150.90066328,0.00031281,7]
[311699997,1705338645844,-152.50773218,0.00031295,2]
[311699998,1705338645854,-150.90066328,0.00031301,7]
[311699999,1705338645863,-500.0,0.00031396,10]
[311700001,1705338645873,-151.0,0.00031409,7]
[311700002,1705338645882,-150.90066328,0.00031433,7]
[311700003,1705338645892,-500.0,0.000315,2]
[311700004,1705338645901,-279.93,0.00031507,2]
[311700005,1705338645910,-204.0,0.00031518,8]
[311700006,1705338645919,-150.90066328,0.00031524,7]
[311700009,1705338645928,-200.0,0.00031534,2]
[311700011,1705338645937,-166.36040673,0.00031539,7]
[311700014,1705338645947,-150.90066328,0.00031548,7]
[311700016,1705338645956,-621.33628027,0.00031559,2]
[311700018,1705338645966,-152.50773218,0.00031566,2]
[311700020,1705338645976,-153.12319756,0.00031587,7]
[311700022,1705338645986,-170.62,0.00031644,2]
[311700025,1705338645997,-4059.9022316,0.0003165,7]
[311700029,1705338646009,-9769.56518084,0.0003165,7]
[311700031,1705338646019,-94989.98366482,0.0003165,7]
[311700033,1705338646029,-12067.02749425,0.0003165,7]
[311700036,1705338646040,-12925.2176082,0.0003165,6]
[311700037,1705338646050,-153.12319756,0.0003166,7]
[311700038,1705338646059,-163.2462232,0.00031715,7]
[311700039,1705338646069,-153.12319756,0.00031772,7]
[311700040,1705338646079,-34805.35826481,0.0003179,2]
[311700041,1705338646089,-368141.736433,0.000318,2]
[311700042,1705338646098,-152.50773218,0.00031837,2]
[311700043,1705338646107,-153.12319756,0.00031887,7]
[311700044,1705338646117,-163318.48602224,0.000319,2]
[311700045,1705338646126,-200.0,0.00031925,2]
[311700046,1705338646135,-157.41746231,0.0003194,7]
[311700047,1705338646144,-500.0,0.00031944,10]
[311700048,1705338646154,-153.84,0.00031963,2]
[311700049,1705338646164,-2752.51384508,0.00031978,10]
[311700050,1705338646173,-200.0,0.0003199,7]
[311700051,1705338646183,-100000.0,0.00032,2]
[311700052,1705338646192,-151.0,0.00032,7]
[311700053,1705338646202,-151.0,0.00032,7]
[311700054,1705338646211,-151.0,0.00032,7]
[311700055,1705338646221,-736.05,0.00032,2]
[311700056,1705338646230,-297.71369058,0.00032,4]
[311700057,1705338646240,-13063.98403504,0.00032,4]
[311700058,1705338646251,-500000.0,0.00032,3]
[311700059,1705338646261,-1600.0,0.00032,3]
[311700060,1705338646270,-300.0,0.00032001,2]
[311700061,1705338646279,-150.0,0.00032001,2]
[311700062,1705338646288,-300.0,0.00032001,2]
[311700063,1705338646298,-418.16,0.00032001,2]
[311700064,1705338646308,-418.16,0.00032001,2]
[311700065,1705338646317,-150.0,0.00032001,2]
[311700066,1705338646326,-418.16,0.00032001,2]
[311700067,1705338646335,-418.16,0.00032001,2]
[311700068,1705338646345,-823.91,0.00032001,2]
[311700069,1705338646354,-150.90066328,0.00032032,7]
[311700070,1705338646363,-151.0,0.0003205,4]
[311700071,1705338646373,-152.50773218,0.00032108,2]
[311700072,1705338646383,-614.71,0.00032157,2]
[311700073,1705338646393,-1000.0,0.00032198,7]
[311700074,1705338646402,-159.41214854,0.00032208,7]
[311700075,1705338646412,-664.06,0.00032256,2]
[311700076,1705338646421,-150.90066328,0.00032271,7]
[311700077,1705338646431,-500.0,0.00032315,2]
[311700078,1705338646444,-200.0,0.00032315,2]
[311700080,1705338646453,-152.50773218,0.00032379,2]
[311700082,1705338646463,-152.31,0.000324,2]
[311700085,1705338646473,-152.31,0.000324,2]
[311700087,1705338646482,-152.31,0.000324,2]
[311700089,1705338646491,-152.31,0.000324,2]
[311700090,1705338646502,-152.31,0.000324,2]
[311700093,1705338646511,-152.31,0.000324,2]
[311700095,1705338646520,-152.31,0.000324,2]
[311700097,1705338646528,-152.31,0.000324,2]
[311700099,1705338646537,-152.31,0.000324,2]
[311700101,1705338646546,-152.31,0.000324,2]
[311700103,1705338646555,-152.31,0.000324,2]
[311700105,1705338646564,-152.31,0.000324,2]
[311700107,1705338646573,-152.31,0.000324,2]
[311700109,1705338646582,-152.31,0.000324,2]
[311700111,1705338646591,-157.65,0.000324,2]
[311700112,1705338646601,-157.65,0.000324,2]
[311700115,1705338646610,-157.65,0.000324,2]
[311700117,1705338646619,-157.65,0.000324,2]
[311700119,1705338646628,-168.77508379,0.00032404,7]
[311700121,1705338646637,-152.06853972,0.00032444,2]
[311700123,1705338646646,-351.57,0.00032467,2]
[311700124,1705338646655,-167.0,0.00032486,2]
[311700127,1705338646665,-500.0,0.00032492,10]
[311700129,1705338646674,-500000.0,0.000325,4]
[311700131,1705338646683,-151.0,0.000325,7]
[311700132,1705338646692,-151.0,0.000325,7]
[311700135,1705338646702,-151.0,0.000325,7]
[311700137,1705338646712,-151.0,0.000325,7]
[311700138,1705338646721,-151.0,0.000325,7]
[311700141,1705338646730,-151.0,0.000325,7]
[311700143,1705338646739,-193.830661,0.000325,7]
[311700145,1705338646748,-151.0,0.000325,7]
[311700146,1705338646759,-151.0,0.000325,7]
[311700147,1705338646768,-151.0,0.000325,7]
[311700148,1705338646777,-299.88172,0.000325,7]
[311700149,1705338646786,-151.0,0.000325,7]
[311700150,1705338646795,-301.152046,0.000325,7]
[311700151,1705338646804,-301.152046,0.000325,7]
[311700152,1705338646813,-184.308805,0.000325,7]
[311700154,1705338646822,-184.308805,0.000325,7]
[311700156,1705338646831,-151.0,0.000325,7]
[311700158,1705338646843,-165.024443,0.000325,7]
[311700160,1705338646852,-165.024443,0.000325,7]
[311700162,1705338646861,-150.90066328,0.00032538,7]
[311700164,1705338646871,-152.50773218,0.0003265,2]
[311700166,1705338646880,-151.0,0.00032704,2]
[311700168,1705338646889,-204.0,0.00032704,10]
[311700170,1705338646898,-200.0,0.00032706,2]
[311700172,1705338646909,-153.12319756,0.00032779,7]
[311700174,1705338646920,-4634.794,0.00032874,4]
[311700176,1705338646930,-1333.01344696,0.00032875,4]
[311700178,1705338646939,-278.31710911,0.00032875,4]
[311700180,1705338646949,-712.62,0.00032876,2]
[311700183,1705338646959,-151.0,0.00032876,7]
[311700185,1705338646968,-151.0,0.00032876,7]
[311700187,1705338646978,-161.382869,0.00032876,7]
[311700189,1705338646987,-151.0,0.00032876,7]
[311700191,1705338646997,-151.0,0.00032876,7]
[311700193,1705338647008,-151.0,0.00032876,7]
[311700195,1705338647017,-151.0,0.00032876,7]
[311700197,1705338647026,-151.0,0.00032876,7]
[311700199,1705338647035,-151.0,0.00032876,7]
[311700201,1705338647044,-437.8701924,0.00032876,7]
[311700203,1705338647053,-500.0,0.00032876,2]
[311700204,1705338647062,-376.94312207,0.00032876,2]
[311700206,1705338647071,-500.0,0.00032876,2]
[311700208,1705338647081,-500.0,0.00032876,2]
[311700210,1705338647091,-500.0,0.00032876,2]
[311700212,1705338647101,-500.0,0.00032876,2]
[311700214,1705338647110,-195.72875052,0.00032876,2]
[311700216,1705338647119,-500.0,0.00032876,2]
[311700219,1705338647129,-500.0,0.00032876,2]
[311700221,1705338647138,-500.0,0.00032876,2]
[311700223,1705338647147,-513.0635709,0.00032876,2]
[311700224,1705338647156,-500.0,0.00032876,2]
[311700227,1705338647166,-500.0,0.00032876,2]
[311700228,1705338647175,-500.0,0.00032876,2]
[311700231,1705338647185,-500.0,0.00032876,2]
[311700233,1705338647194,-708.63,0.00032876,2]
[311700235,1705338647203,-500.0,0.00032876,2]
[311700236,1705338647211,-341.17244285,0.00032876,2]
[311700239,1705338647221,-898.51,0.00032876,2]
[311700241,1705338647230,-1142.61,0.00032876,2]
[311700243,1705338647239,-500.0,0.00032876,2]
[311700245,1705338647249,-500.0,0.00032876,2]
[311700247,1705338647259,-500.0,0.00032876,2]
[311700248,1705338647268,-500.0,0.00032876,2]
[311700250,1705338647277,-500.0,0.00032876,2]
[311700252,1705338647286,-500.0,0.00032876,2]
[311700254,1705338647295,-500.0,0.00032876,2]
[311700256,1705338647305,-622.36,0.00032876,2]
[311700258,1705338647314,-500.0,0.00032876,2]
[311700260,1705338647323,-500.0,0.00032876,2]
[311700262,1705338647332,-500.0,0.00032876,2]
[311700264,1705338647342,-500.0,0.00032876,2]
[311700266,1705338647351,-500.0,0.00032876,2]
[311700268,1705338647360,-452.18435895,0.00032876,2]
[311700270,1705338647369,-567.99,0.00032876,2]
[311700272,1705338647378,-872.25,0.00032876,2]
[311700274,1705338647387,-735.71,0.00032876,2]
[311700276,1705338647396,-500.0,0.00032876,2]
[311700278,1705338647406,-500.0,0.00032876,2]
[311700280,1705338647416,-722.25,0.00032876,2]
[311700282,1705338647425,-530.07,0.00032876,2]
[311700284,1705338647434,-500.0,0.00032876,2]
[311700286,1705338647443,-500.0,0.00032876,2]
[311700288,1705338647452,-500.0,0.00032876,2]
[311700290,1705338647462,-500.0,0.00032876,2]
[311700292,1705338647472,-500.0,0.00032876,2]
[311700294,1705338647481,-500.0,0.00032876,2]
[311700322,1705338647734,-500.0,0.00032876,2]
[311700324,1705338647744,-500.0,0.00032876,2]
[311700326,1705338647754,-798.58,0.00032876,2]
[311700328,1705338647762,-509.050813,0.00032876,2]
[311700330,1705338647771,-500.0,0.00032876,2]
[311700332,1705338647780,-500.0,0.00032876,2]
[311700334,1705338647790,-531.18624668,0.00032876,2]
[311700336,1705338647798,-500.0,0.00032876,2]
[311700337,1705338647808,-500.0,0.00032876,2]
[311700340,1705338647817,-500.0,0.00032876,2]
[311700341,1705338647826,-500.0,0.00032876,2]
[311700342,1705338647835,-500.0,0.00032876,2]
[311700343,1705338647844,-503.14728538,0.00032876,2]
[311700344,1705338647853,-500.0,0.00032876,2]
[311700345,1705338647862,-500.0,0.00032876,2]
[311700346,1705338647872,-500.0,0.00032876,2]
[311700347,1705338647882,-988.09,0.00032876,2]
[311700348,1705338647891,-307.79220468,0.00032876,7]
[311700349,1705338647900,-265.34831813,0.00032876,7]
[311700350,1705338647909,-401.3093205,0.00032876,7]
[311700351,1705338647919,-500.0,0.00032876,2]
[311700352,1705338647928,-588.29282774,0.00032876,7]
[311700353,1705338647937,-398.54921749,0.00032876,7]
[311700354,1705338647947,-500.0,0.00032876,2]
[311700355,1705338647956,-515.13922595,0.00032876,2]
[311700356,1705338647965,-853.76,0.00032876,2]
[311700357,1705338647975,-500.0,0.00032876,2]
[311700358,1705338647985,-159.32962375,0.00032876,2]
[311700359,1705338647994,-983.25,0.00032876,2]
[311700360,1705338648004,-500.0,0.00032876,2]
[311700361,1705338648013,-613.1,0.00032876,2]
[311700362,1705338648023,-500.0,0.00032876,2]
[311700363,1705338648032,-335.91918576,0.00032876,7]
[311700364,1705338648042,-500.0,0.00032876,2]
[311700365,1705338648052,-500.0,0.00032876,2]
[311700366,1705338648061,-500.0,0.00032876,2]
[311700367,1705338648070,-721.02,0.00032876,2]
[311700368,1705338648079,-544.77,0.00032876,2]
[311700369,1705338648089,-794.28,0.00032876,2]
[311700370,1705338648098,-202.43003233,0.00032876,7]
[311700371,1705338648107,-500.0,0.00032876,7]
[311700372,1705338648117,-500.0,0.00032876,2]
[311700373,1705338648126,-513.83,0.00032876,2]
[311700374,1705338648135,-597.08,0.00032876,2]
[311700375,1705338648145,-762.35,0.00032876,2]
[311700376,1705338648154,-679.6,0.00032876,2]
[311700377,1705338648163,-500.0,0.00032876,2]
[311700378,1705338648173,-631.53,0.00032876,2]
[311700379,1705338648183,-500.0,0.00032876,2]
[311700380,1705338648192,-532.65,0.00032876,2]
[311700381,1705338648202,-500.0,0.00032876,2]
[311700382,1705338648214,-500.0,0.00032876,2]
[311700383,1705338648223,-500.0,0.00032876,2]
[311700384,1705338648233,-530.16585013,0.00032876,2]
[311700385,1705338648242,-500.0,0.00032876,2]
[311700386,1705338648252,-500.0,0.00032876,2]
[311700387,1705338648262,-500.0,0.00032876,2]
[311700388,1705338648270,-711.89,0.00032876,2]
[311700389,1705338648280,-454.27571543,0.00032876,2]
[311700390,1705338648289,-500.0,0.00032876,2]
[311700391,1705338648298,-500.0,0.00032876,2]
[311700392,1705338648308,-823.65,0.00032876,2]
[311700393,1705338648317,-608.16,0.00032876,2]
[311700394,1705338648326,-501.9205862,0.00032876,2]
[311700395,1705338648335,-500.0,0.00032876,2]
[311700396,1705338648344,-500.0,0.00032876,2]
[311700397,1705338648353,-629.45,0.00032876,2]
[311700398,1705338648363,-500.0,0.00032876,2]
[311700399,1705338648373,-500.0,0.00032876,2]
[311700400,1705338648382,-672.9,0.00032876,2]
[311700401,1705338648392,-500.0,0.00032876,2]
[311700402,1705338648401,-500.0,0.00032876,2]